[Event "Titled Tuesday Blitz April 25 Early 2023"]
[White "Andreikin, Dmitry"]
[Black "Pranesh M"]
[WhiteFideId "4158814"]
[BlackFideId "35028600"]
[WhiteElo "2736"]
[BlackElo "2437"]
[Result "1-0"]
[Round "10"]
[TimeControl "180+2"]
[Date "2023.04.25"]
[WhiteClock "0:00:18"]
[BlackClock "0:00:06"]

1. d4 {[%clk 0:03:00]}  d5 {[%clk 0:02:59]} 2. c4 {[%clk 0:03:01]}  c6 {[%clk 0:02:53]} 3. Nf3 {[%clk 0:02:59]}  Nf6 {[%clk 0:02:52]} 4. e3 {[%clk 0:03:00]}  g6 {[%clk 0:02:50]} 5. Nc3 {[%clk 0:02:58]}  Bg7 {[%clk 0:02:50]} 6. h3 {[%clk 0:02:58]}  O-O {[%clk 0:02:50]} 7. Be2 {[%clk 0:02:59]}  a6 {[%clk 0:02:49]} 8. a4 {[%clk 0:02:57]}  c5 {[%clk 0:02:39]} 9. O-O {[%clk 0:02:45]}  cxd4 {[%clk 0:02:39]} 10. exd4 {[%clk 0:02:45]}  Nc6 {[%clk 0:02:39]} 11. Bg5 {[%clk 0:02:44]}  Ne4 {[%clk 0:02:29]} 12. Be3 {[%clk 0:02:35]}  Nxc3 {[%clk 0:02:25]} 13. bxc3 {[%clk 0:02:36]}  Be6 {[%clk 0:02:25]} 14. Ng5 {[%clk 0:02:32]}  Bc8 {[%clk 0:02:16]} 15. Rb1 {[%clk 0:02:24]}  e6 {[%clk 0:02:09]} 16. Qd2 {[%clk 0:02:08]}  Na5 {[%clk 0:02:04]} 17. c5 {[%clk 0:02:04]}  Bd7 {[%clk 0:02:02]} 18. Rb4 {[%clk 0:02:00]}  Bc6 {[%clk 0:01:54]} 19. Nf3 {[%clk 0:01:46]}  f6 {[%clk 0:01:53]} 20. Bh6 {[%clk 0:01:40]}  Qd7 {[%clk 0:01:52]} 21. h4 {[%clk 0:01:28]}  Rae8 {[%clk 0:01:40]} 22. h5 {[%clk 0:01:26]}  Bxh6 {[%clk 0:01:34]} 23. Qxh6 {[%clk 0:01:26]}  g5 {[%clk 0:01:35]} 24. Nh2 {[%clk 0:01:11]}  Qg7 {[%clk 0:01:31]} 25. Qxg7+ {[%clk 0:01:11]}  Kxg7 {[%clk 0:01:32]} 26. f4 {[%clk 0:01:11]}  h6 {[%clk 0:01:23]} 27. Ng4 {[%clk 0:01:12]}  gxf4 {[%clk 0:01:03]} 28. Rxf4 {[%clk 0:01:06]}  Re7 {[%clk 0:01:00]} 29. Rf3 {[%clk 0:00:51]}  Be8 {[%clk 0:00:47]} 30. Rg3 {[%clk 0:00:50]}  Kh7 {[%clk 0:00:46]} 31. Bd3+ {[%clk 0:00:49]}  f5 {[%clk 0:00:47]} 32. Ne5 {[%clk 0:00:45]}  Nc6 {[%clk 0:00:39]} 33. Nxc6 {[%clk 0:00:32]}  Bxc6 {[%clk 0:00:40]} 34. a5 {[%clk 0:00:30]}  Rg7 {[%clk 0:00:35]} 35. Re3 {[%clk 0:00:30]}  Rfg8 {[%clk 0:00:21]} 36. Rb2 {[%clk 0:00:30]}  Re8 {[%clk 0:00:19]} 37. Rxe6 {[%clk 0:00:29]}  Rxe6 {[%clk 0:00:16]} 38. Bxf5+ {[%clk 0:00:29]}  Kh8 {[%clk 0:00:17]} 39. Bxe6 {[%clk 0:00:29]}  Re7 {[%clk 0:00:18]} 40. Re2 {[%clk 0:00:19]}  Kg7 {[%clk 0:00:11]} 41. Bg4 {[%clk 0:00:19]}  Rf7 {[%clk 0:00:10]} 42. Re6 {[%clk 0:00:18]}  Kh7 {[%clk 0:00:07]} 43. Kh2 {[%clk 0:00:16]}  Bd7 {[%clk 0:00:06]} 44. Rg6 {[%clk 0:00:15]}  Bxg4 {[%clk 0:00:03]} 45. Rxg4 {[%clk 0:00:16]}  Rf5 {[%clk 0:00:04]} 46. Rh4 {[%clk 0:00:13]}  Rf1 {[%clk 0:00:05]} 47. Rh3 {[%clk 0:00:13]}  Ra1 {[%clk 0:00:05]} 48. Re3 {[%clk 0:00:13]}  Rxa5 {[%clk 0:00:04]} 49. Re7+ {[%clk 0:00:13]}  Kg8 {[%clk 0:00:05]} 50. Rxb7 {[%clk 0:00:14]}  Ra3 {[%clk 0:00:06]} 51. c6 {[%clk 0:00:14]}  Rxc3 {[%clk 0:00:03]} 52. c7 {[%clk 0:00:14]}  Kf8 {[%clk 0:00:03]} 53. Rb8+ {[%clk 0:00:14]}  Ke7 {[%clk 0:00:04]} 54. c8=Q {[%clk 0:00:15]}  Rxc8 {[%clk 0:00:05]} 55. Rxc8 {[%clk 0:00:16]}  Ke6 {[%clk 0:00:06]} 56. Ra8 {[%clk 0:00:17]}  Kf5 {[%clk 0:00:07]} 57. Rxa6 {[%clk 0:00:17]}  Kg5 {[%clk 0:00:07]} 58. Rd6 {[%clk 0:00:17]}  Kxh5 {[%clk 0:00:08]} 59. Rxd5+ {[%clk 0:00:18]}  Kh4 {[%clk 0:00:09]} 60. Re5 {[%clk 0:00:19]}  h5 {[%clk 0:00:09]} 61. d5 {[%clk 0:00:19]}  Kg4 {[%clk 0:00:10]} 62. d6 {[%clk 0:00:20]}  Kf4 {[%clk 0:00:11]} 63. Rxh5 {[%clk 0:00:19]}  Kg4 {[%clk 0:00:11]} 64. Ra5 {[%clk 0:00:19]}  Kf4 {[%clk 0:00:12]} 65. d7 {[%clk 0:00:20]}  Ke4 {[%clk 0:00:13]} 66. d8=Q {[%clk 0:00:20]}  Ke3 {[%clk 0:00:14]} 67. Qd5 {[%clk 0:00:19]}  Ke2 {[%clk 0:00:12]} 68. Ra3 {[%clk 0:00:18]}  Ke1 {[%clk 0:00:12]} 69. Qd3 {[%clk 0:00:17]}  Kf2 {[%clk 0:00:10]} 70. Qe3+ {[%clk 0:00:17]}  Kf1 {[%clk 0:00:06]} 71. Ra1# {[%clk 0:00:18]} 1-0


[Site "https://www.chess.com"]

[Event "Titled Tuesday Blitz April 25 Early 2023"]
[White "Harsha Bharathakoti"]
[Black "Shimanov, Aleksandr"]
[WhiteFideId "5078776"]
[BlackFideId "4198603"]
[WhiteElo "2504"]
[BlackElo "2631"]
[Result "1-0"]
[Round "10"]
[TimeControl "180+2"]
[Date "2023.04.25"]
[WhiteClock "0:00:38"]
[BlackClock "0:00:31"]

1. c4 {[%clk 0:03:00]}  g6 {[%clk 0:02:52]} 2. d4 {[%clk 0:02:56]}  Bg7 {[%clk 0:02:53]} 3. e4 {[%clk 0:02:56]}  d6 {[%clk 0:02:52]} 4. Nc3 {[%clk 0:02:55]}  c5 {[%clk 0:02:52]} 5. d5 {[%clk 0:02:54]}  Bxc3+ {[%clk 0:02:52]} 6. bxc3 {[%clk 0:02:55]}  e5 {[%clk 0:02:53]} 7. f4 {[%clk 0:02:44]}  Qh4+ {[%clk 0:02:43]} 8. g3 {[%clk 0:02:42]}  Qf6 {[%clk 0:02:42]} 9. Qd3 {[%clk 0:02:07]}  Nd7 {[%clk 0:02:37]} 10. Nf3 {[%clk 0:02:07]}  Qe7 {[%clk 0:02:34]} 11. Bg2 {[%clk 0:01:58]}  f6 {[%clk 0:02:32]} 12. O-O {[%clk 0:01:52]}  Qg7 {[%clk 0:02:16]} 13. fxe5 {[%clk 0:01:40]}  Nxe5 {[%clk 0:02:17]} 14. Nxe5 {[%clk 0:01:40]}  fxe5 {[%clk 0:02:18]} 15. Qf3 {[%clk 0:01:35]}  h6 {[%clk 0:02:13]} 16. Rb1 {[%clk 0:01:28]}  Rb8 {[%clk 0:02:09]} 17. a4 {[%clk 0:01:16]}  Bd7 {[%clk 0:01:53]} 18. Rb2 {[%clk 0:01:09]}  Rh7 {[%clk 0:01:05]} 19. Rbf2 {[%clk 0:01:05]}  Rd8 {[%clk 0:00:56]} 20. Qf8+ {[%clk 0:00:59]}  Qxf8 {[%clk 0:00:56]} 21. Rxf8+ {[%clk 0:01:00]}  Ke7 {[%clk 0:00:57]} 22. Rxd8 {[%clk 0:01:01]}  Kxd8 {[%clk 0:00:57]} 23. Rf8+ {[%clk 0:01:02]}  Be8 {[%clk 0:00:57]} 24. Rxg8 {[%clk 0:01:02]}  Ke7 {[%clk 0:00:57]} 25. Bh3 {[%clk 0:00:56]}  a5 {[%clk 0:00:49]} 26. Be6 {[%clk 0:00:52]}  b6 {[%clk 0:00:48]} 27. h4 {[%clk 0:00:48]}  Bxa4 {[%clk 0:00:45]} 28. Rb8 {[%clk 0:00:45]}  Kf6 {[%clk 0:00:42]} 29. Rxb6 {[%clk 0:00:44]}  Ra7 {[%clk 0:00:38]} 30. Rxd6 {[%clk 0:00:42]}  Bc2 {[%clk 0:00:35]} 31. Bf5+ {[%clk 0:00:36]}  Kf7 {[%clk 0:00:34]} 32. Bxg6+ {[%clk 0:00:36]}  Ke7 {[%clk 0:00:33]} 33. Re6+ {[%clk 0:00:37]}  Kd7 {[%clk 0:00:34]} 34. Bf5 {[%clk 0:00:37]}  Kd8 {[%clk 0:00:32]} 35. Rxh6 {[%clk 0:00:36]}  a4 {[%clk 0:00:29]} 36. Rh8+ {[%clk 0:00:36]}  Kc7 {[%clk 0:00:29]} 37. Rh7+ {[%clk 0:00:37]}  Kb6 {[%clk 0:00:30]} 38. Rxa7 {[%clk 0:00:38]}  Kxa7 {[%clk 0:00:31]} 39. h5 {[%clk 0:00:38]} 1-0


[Site "https://www.chess.com"]

[Event "Titled Tuesday Blitz April 25 Early 2023"]
[White "Kushko, Dmitriy"]
[Black "Naroditsky, Daniel"]
[WhiteFideId "14162261"]
[BlackFideId "2026961"]
[WhiteElo "2230"]
[BlackElo "2633"]
[Result "0-1"]
[Round "10"]
[TimeControl "180+2"]
[Date "2023.04.25"]
[WhiteClock "0:00:09"]
[BlackClock "0:01:38"]

1. g3 {[%clk 0:00:37]}  e5 {[%clk 0:02:58]} 2. Bg2 {[%clk 0:00:38]}  d5 {[%clk 0:02:58]} 3. d3 {[%clk 0:00:38]}  Nf6 {[%clk 0:02:58]} 4. Nf3 {[%clk 0:00:39]}  Nc6 {[%clk 0:02:43]} 5. Kf1 {[%clk 0:00:38]}  h6 {[%clk 0:02:41]} 6. h3 {[%clk 0:00:38]}  Bd6 {[%clk 0:02:30]} 7. Nc3 {[%clk 0:00:37]}  e4 {[%clk 0:02:25]} 8. dxe4 {[%clk 0:00:33]}  dxe4 {[%clk 0:02:26]} 9. Nd4 {[%clk 0:00:32]}  Qe7 {[%clk 0:02:17]} 10. Nxc6 {[%clk 0:00:29]}  bxc6 {[%clk 0:02:18]} 11. Be3 {[%clk 0:00:29]}  Bf5 {[%clk 0:02:14]} 12. g4 {[%clk 0:00:26]}  Bg6 {[%clk 0:02:12]} 13. Qd4 {[%clk 0:00:26]}  O-O {[%clk 0:02:04]} 14. Qc4 {[%clk 0:00:23]}  Rab8 {[%clk 0:01:58]} 15. Rb1 {[%clk 0:00:19]}  c5 {[%clk 0:01:55]} 16. a3 {[%clk 0:00:19]}  Qe5 {[%clk 0:01:42]} 17. Ke1 {[%clk 0:00:09]}  Rfd8 {[%clk 0:01:38]} 0-1


[Site "https://www.chess.com"]

[Event "Titled Tuesday Blitz April 25 Early 2023"]
[White "Tactrics"]
[Black "Aradhya, Garg"]
[BlackFideId "25006746"]
[WhiteElo "2956"]
[BlackElo "2263"]
[Result "0-1"]
[Round "10"]
[TimeControl "180+2"]
[Date "2023.04.25"]
[WhiteClock "0:00:16"]
[BlackClock "0:00:19"]

1. e4 {[%clk 0:02:57]}  e5 {[%clk 0:02:59]} 2. Nf3 {[%clk 0:02:57]}  Nc6 {[%clk 0:03:00]} 3. Nc3 {[%clk 0:02:58]}  Nf6 {[%clk 0:02:59]} 4. d4 {[%clk 0:02:58]}  Bb4 {[%clk 0:03:00]} 5. dxe5 {[%clk 0:02:55]}  Nxe4 {[%clk 0:03:00]} 6. Bd2 {[%clk 0:02:54]}  d5 {[%clk 0:02:35]} 7. Bd3 {[%clk 0:02:45]}  Nxd2 {[%clk 0:02:32]} 8. Nxd2 {[%clk 0:02:29]}  Qg5 {[%clk 0:02:24]} 9. O-O {[%clk 0:02:16]}  Bxc3 {[%clk 0:02:17]} 10. bxc3 {[%clk 0:02:16]}  Bh3 {[%clk 0:02:01]} 11. Qf3 {[%clk 0:02:06]}  Be6 {[%clk 0:01:53]} 12. Qd1 {[%clk 0:01:36]}  Qxe5 {[%clk 0:01:52]} 13. Rb1 {[%clk 0:01:33]}  O-O-O {[%clk 0:01:36]} 14. Bb5 {[%clk 0:01:27]}  Qxc3 {[%clk 0:01:36]} 15. Bxc6 {[%clk 0:01:11]}  Qxc6 {[%clk 0:01:36]} 16. Nb3 {[%clk 0:01:11]}  d4 {[%clk 0:01:12]} 17. Na5 {[%clk 0:01:08]}  Qc3 {[%clk 0:01:09]} 18. Nxb7 {[%clk 0:01:03]}  Rd5 {[%clk 0:01:10]} 19. Rb3 {[%clk 0:00:59]}  Qc4 {[%clk 0:01:06]} 20. Qb1 {[%clk 0:00:53]}  Kd7 {[%clk 0:01:06]} 21. Rd1 {[%clk 0:00:37]}  a5 {[%clk 0:00:59]} 22. a4 {[%clk 0:00:29]}  Ke7 {[%clk 0:00:58]} 23. Qb2 {[%clk 0:00:22]}  Qxa4 {[%clk 0:00:51]} 24. Ra1 {[%clk 0:00:20]}  Qd7 {[%clk 0:00:44]} 25. Nxa5 {[%clk 0:00:18]}  Rd8 {[%clk 0:00:28]} 26. Qa3+ {[%clk 0:00:17]}  Ke8 {[%clk 0:00:25]} 27. Nb7 {[%clk 0:00:14]}  Rc8 {[%clk 0:00:25]} 28. Nc5 {[%clk 0:00:14]}  Qc6 {[%clk 0:00:23]} 29. Nxe6 {[%clk 0:00:12]}  Qxe6 {[%clk 0:00:22]} 30. Qb4 {[%clk 0:00:11]}  c5 {[%clk 0:00:21]} 31. Qa5 {[%clk 0:00:10]}  c4 {[%clk 0:00:20]} 32. Rb5 {[%clk 0:00:09]}  Rxb5 {[%clk 0:00:19]} 33. Qxb5+ {[%clk 0:00:10]}  Kf8 {[%clk 0:00:20]} 34. h3 {[%clk 0:00:07]}  g6 {[%clk 0:00:19]} 35. Rd1 {[%clk 0:00:07]}  Qd6 {[%clk 0:00:17]} 36. Qb7 {[%clk 0:00:06]}  Rd8 {[%clk 0:00:15]} 37. Qb5 {[%clk 0:00:06]}  c3 {[%clk 0:00:15]} 38. Rd3 {[%clk 0:00:04]}  Qd5 {[%clk 0:00:15]} 39. Qb4+ {[%clk 0:00:04]}  Kg7 {[%clk 0:00:15]} 40. g3 {[%clk 0:00:04]}  Re8 {[%clk 0:00:15]} 41. Qxd4+ {[%clk 0:00:03]}  Qxd4 {[%clk 0:00:15]} 42. Rxd4 {[%clk 0:00:04]}  Re2 {[%clk 0:00:15]} 43. Rc4 {[%clk 0:00:04]}  Rxc2 {[%clk 0:00:15]} 44. Rc7 {[%clk 0:00:05]}  Rc1+ {[%clk 0:00:15]} 45. Kg2 {[%clk 0:00:06]}  c2 {[%clk 0:00:15]} 46. Rc6 {[%clk 0:00:06]}  Kf8 {[%clk 0:00:15]} 47. h4 {[%clk 0:00:07]}  Ke7 {[%clk 0:00:15]} 48. g4 {[%clk 0:00:06]}  Kd7 {[%clk 0:00:16]} 49. Rc4 {[%clk 0:00:06]}  Kd6 {[%clk 0:00:16]} 50. h5 {[%clk 0:00:06]}  g5 {[%clk 0:00:16]} 51. f3 {[%clk 0:00:05]}  Kd5 {[%clk 0:00:16]} 52. Rc8 {[%clk 0:00:05]}  Kd4 {[%clk 0:00:16]} 53. Rd8+ {[%clk 0:00:06]}  Kc3 {[%clk 0:00:16]} 54. Rc8+ {[%clk 0:00:06]}  Kd2 {[%clk 0:00:16]} 55. Rd8+ {[%clk 0:00:07]}  Ke3 {[%clk 0:00:17]} 56. Re8+ {[%clk 0:00:08]}  Kd4 {[%clk 0:00:17]} 57. Rd8+ {[%clk 0:00:08]}  Ke5 {[%clk 0:00:18]} 58. Re8+ {[%clk 0:00:08]}  Kd6 {[%clk 0:00:17]} 59. Rc8 {[%clk 0:00:08]}  f5 {[%clk 0:00:17]} 60. gxf5 {[%clk 0:00:07]}  Ke5 {[%clk 0:00:17]} 61. Rc5+ {[%clk 0:00:07]}  Kf6 {[%clk 0:00:17]} 62. Kh2 {[%clk 0:00:07]}  Rf1 {[%clk 0:00:14]} 63. Rxc2 {[%clk 0:00:06]}  Rxf3 {[%clk 0:00:14]} 64. Rc7 {[%clk 0:00:05]}  h6 {[%clk 0:00:10]} 65. Rh7 {[%clk 0:00:03]}  g4 {[%clk 0:00:10]} 66. Rxh6+ {[%clk 0:00:02]}  Kg5 {[%clk 0:00:10]} 67. Rh8 {[%clk 0:00:02]}  Rxf5 {[%clk 0:00:08]} 68. h6 {[%clk 0:00:02]}  Kh4 {[%clk 0:00:09]} 69. h7 {[%clk 0:00:01]}  Rf7 {[%clk 0:00:09]} 70. Kg2 {[%clk 0:00:01]}  g3 {[%clk 0:00:09]} 71. Rg8 {[%clk 0:00:02]}  Rxh7 {[%clk 0:00:09]} 72. Rxg3 {[%clk 0:00:02]}  Rb7 {[%clk 0:00:10]} 73. Rh3+ {[%clk 0:00:02]}  Kg4 {[%clk 0:00:10]} 74. Rg3+ {[%clk 0:00:03]}  Kf4 {[%clk 0:00:10]} 75. Rf3+ {[%clk 0:00:04]}  Ke4 {[%clk 0:00:11]} 76. Rf2 {[%clk 0:00:05]}  Rg7+ {[%clk 0:00:10]} 77. Kf1 {[%clk 0:00:06]}  Rg4 {[%clk 0:00:11]} 78. Re2+ {[%clk 0:00:06]}  Kd4 {[%clk 0:00:11]} 79. Rf2 {[%clk 0:00:07]}  Ke5 {[%clk 0:00:10]} 80. Ke2 {[%clk 0:00:07]}  Re4+ {[%clk 0:00:10]} 81. Kd3 {[%clk 0:00:08]}  Rd4+ {[%clk 0:00:11]} 82. Ke3 {[%clk 0:00:08]}  Re4+ {[%clk 0:00:11]} 83. Kd3 {[%clk 0:00:09]}  Rd4+ {[%clk 0:00:11]} 84. Kc3 {[%clk 0:00:09]}  Rf4 {[%clk 0:00:12]} 85. Rd2 {[%clk 0:00:10]}  Rf3+ {[%clk 0:00:12]} 86. Kc4 {[%clk 0:00:11]}  Rf4+ {[%clk 0:00:12]} 87. Kc5 {[%clk 0:00:11]}  Rf5 {[%clk 0:00:13]} 88. Rd8 {[%clk 0:00:12]}  Ke4+ {[%clk 0:00:13]} 89. Kc4 {[%clk 0:00:12]}  Rf4 {[%clk 0:00:14]} 90. Re8+ {[%clk 0:00:13]}  Kf3+ {[%clk 0:00:14]} 91. Kd3 {[%clk 0:00:13]}  Kf2 {[%clk 0:00:15]} 92. Re7 {[%clk 0:00:12]}  Rf3+ {[%clk 0:00:15]} 93. Kd2 {[%clk 0:00:13]}  Rf5 {[%clk 0:00:15]} 94. Re2+ {[%clk 0:00:13]}  Kf3 {[%clk 0:00:15]} 95. Re8 {[%clk 0:00:14]}  Rd5+ {[%clk 0:00:15]} 96. Kc3 {[%clk 0:00:14]}  Rf5 {[%clk 0:00:16]} 97. Kd4 {[%clk 0:00:14]}  Kf4 {[%clk 0:00:16]} 98. Re1 {[%clk 0:00:14]}  Kg5 {[%clk 0:00:17]} 99. Rg1+ {[%clk 0:00:14]}  Kf6 {[%clk 0:00:17]} 100. Ke4 {[%clk 0:00:14]}  Re5+ {[%clk 0:00:17]} 101. Kd4 {[%clk 0:00:15]}  Rf5 {[%clk 0:00:18]} 102. Re1 {[%clk 0:00:16]}  Rf4+ {[%clk 0:00:18]} 103. Kd5 {[%clk 0:00:16]}  Rf5+ {[%clk 0:00:19]} 104. Kd6 {[%clk 0:00:17]}  Rf4 {[%clk 0:00:19]} 105. Re8 {[%clk 0:00:17]}  Rd4+ {[%clk 0:00:19]} 106. Kc5 {[%clk 0:00:18]}  Rf4 {[%clk 0:00:20]} 107. Rf8+ {[%clk 0:00:18]}  Ke5 {[%clk 0:00:19]} 108. Rh8 {[%clk 0:00:18]}  Ke4 {[%clk 0:00:19]} 109. Rh4 {[%clk 0:00:16]}  Rxh4 {[%clk 0:00:19]} 0-1


[Site "https://www.chess.com"]

[Event "Titled Tuesday Blitz April 25 Early 2023"]
[White "Pakleza, Zbigniew"]
[Black "Grigoriants, Sergey"]
[WhiteFideId "1119290"]
[BlackFideId "4130804"]
[WhiteElo "2410"]
[BlackElo "2502"]
[Result "1-0"]
[Round "10"]
[TimeControl "180+2"]
[Date "2023.04.25"]
[WhiteClock "0:00:04"]
[BlackClock "0:00:18"]

1. d4 {[%clk 0:03:00]}  d5 {[%clk 0:02:54]} 2. Bf4 {[%clk 0:03:00]}  c5 {[%clk 0:02:53]} 3. e3 {[%clk 0:03:00]}  Nc6 {[%clk 0:02:53]} 4. c3 {[%clk 0:03:01]}  Qb6 {[%clk 0:02:52]} 5. Qb3 {[%clk 0:02:59]}  c4 {[%clk 0:02:50]} 6. Qxb6 {[%clk 0:02:56]}  axb6 {[%clk 0:02:50]} 7. Nf3 {[%clk 0:02:54]}  b5 {[%clk 0:02:49]} 8. Be2 {[%clk 0:02:53]}  Bf5 {[%clk 0:02:44]} 9. O-O {[%clk 0:02:52]}  e6 {[%clk 0:02:45]} 10. a3 {[%clk 0:02:50]}  b4 {[%clk 0:02:42]} 11. Nh4 {[%clk 0:02:46]}  Bc2 {[%clk 0:02:33]} 12. Rc1 {[%clk 0:02:41]}  b3 {[%clk 0:02:29]} 13. Nd2 {[%clk 0:02:30]}  b5 {[%clk 0:02:29]} 14. Nhf3 {[%clk 0:02:08]}  Nf6 {[%clk 0:02:25]} 15. Ne5 {[%clk 0:02:03]}  Nxe5 {[%clk 0:02:23]} 16. Bxe5 {[%clk 0:02:04]}  Nd7 {[%clk 0:02:23]} 17. Rxc2 {[%clk 0:01:58]}  bxc2 {[%clk 0:02:20]} 18. Rc1 {[%clk 0:01:59]}  Nxe5 {[%clk 0:02:03]} 19. dxe5 {[%clk 0:02:00]}  g5 {[%clk 0:01:56]} 20. Nf3 {[%clk 0:01:50]}  Bg7 {[%clk 0:01:48]} 21. g4 {[%clk 0:01:40]}  f6 {[%clk 0:01:22]} 22. exf6 {[%clk 0:01:33]}  Bxf6 {[%clk 0:01:23]} 23. Rxc2 {[%clk 0:01:34]}  Ke7 {[%clk 0:01:24]} 24. Kg2 {[%clk 0:01:24]}  e5 {[%clk 0:01:23]} 25. e4 {[%clk 0:01:12]}  Rhd8 {[%clk 0:01:10]} 26. exd5 {[%clk 0:01:11]}  Rxd5 {[%clk 0:01:11]} 27. Nd2 {[%clk 0:01:09]}  Rad8 {[%clk 0:01:00]} 28. Ne4 {[%clk 0:01:09]}  Rc8 {[%clk 0:00:57]} 29. h3 {[%clk 0:01:03]}  h6 {[%clk 0:00:57]} 30. Ng3 {[%clk 0:00:58]}  Ke6 {[%clk 0:00:56]} 31. Bf3 {[%clk 0:00:54]}  Rdd8 {[%clk 0:00:51]} 32. Nf5 {[%clk 0:00:50]}  h5 {[%clk 0:00:49]} 33. Ng3 {[%clk 0:00:31]}  h4 {[%clk 0:00:48]} 34. Ne4 {[%clk 0:00:32]}  Be7 {[%clk 0:00:49]} 35. Be2 {[%clk 0:00:23]}  Rd7 {[%clk 0:00:46]} 36. Rc1 {[%clk 0:00:20]}  Kf7 {[%clk 0:00:45]} 37. Ra1 {[%clk 0:00:18]}  Ra8 {[%clk 0:00:44]} 38. Rc1 {[%clk 0:00:16]}  Kg6 {[%clk 0:00:43]} 39. Kf1 {[%clk 0:00:16]}  Rf8 {[%clk 0:00:40]} 40. Kg2 {[%clk 0:00:15]}  Rf4 {[%clk 0:00:39]} 41. f3 {[%clk 0:00:12]}  Rf8 {[%clk 0:00:37]} 42. Kf2 {[%clk 0:00:09]}  Rc8 {[%clk 0:00:37]} 43. Rb1 {[%clk 0:00:09]}  Bc5+ {[%clk 0:00:37]} 44. Nxc5 {[%clk 0:00:06]}  Rxc5 {[%clk 0:00:36]} 45. Ke3 {[%clk 0:00:07]}  Kf6 {[%clk 0:00:35]} 46. Ra1 {[%clk 0:00:07]}  Rcd5 {[%clk 0:00:34]} 47. a4 {[%clk 0:00:06]}  Ra7 {[%clk 0:00:34]} 48. a5 {[%clk 0:00:06]}  Rd6 {[%clk 0:00:34]} 49. Ra3 {[%clk 0:00:04]}  Rda6 {[%clk 0:00:29]} 50. b4 {[%clk 0:00:04]}  cxb3 {[%clk 0:00:30]} 51. Rxb3 {[%clk 0:00:04]}  Rxa5 {[%clk 0:00:30]} 52. Bxb5 {[%clk 0:00:04]}  Ra3 {[%clk 0:00:31]} 53. Rxa3 {[%clk 0:00:02]}  Rxa3 {[%clk 0:00:31]} 54. Kd3 {[%clk 0:00:02]}  Ra1 {[%clk 0:00:28]} 55. c4 {[%clk 0:00:03]}  Ke6 {[%clk 0:00:27]} 56. c5 {[%clk 0:00:02]}  Kd5 {[%clk 0:00:26]} 57. c6 {[%clk 0:00:03]}  Kd6 {[%clk 0:00:27]} 58. Ke4 {[%clk 0:00:03]}  Rh1 {[%clk 0:00:27]} 59. Kf5 {[%clk 0:00:02]}  Rxh3 {[%clk 0:00:28]} 60. Kxg5 {[%clk 0:00:03]}  Rh1 {[%clk 0:00:28]} 61. f4 {[%clk 0:00:02]}  e4 {[%clk 0:00:21]} 62. f5 {[%clk 0:00:02]}  h3 {[%clk 0:00:22]} 63. f6 {[%clk 0:00:02]}  h2 {[%clk 0:00:21]} 64. f7 {[%clk 0:00:02]}  Ke7 {[%clk 0:00:21]} 65. Kg6 {[%clk 0:00:02]}  Rg1 {[%clk 0:00:17]} 66. c7 {[%clk 0:00:02]}  Rxg4+ {[%clk 0:00:17]} 67. Kf5 {[%clk 0:00:03]}  h1=Q {[%clk 0:00:17]} 68. f8=Q+ {[%clk 0:00:03]}  Kxf8 {[%clk 0:00:17]} 69. c8=Q+ {[%clk 0:00:04]}  Ke7 {[%clk 0:00:17]} 70. Qe8+ {[%clk 0:00:03]}  Kd6 {[%clk 0:00:18]} 71. Qc6+ {[%clk 0:00:04]}  Ke7 {[%clk 0:00:18]} 72. Qe8+ {[%clk 0:00:04]}  Kd6 {[%clk 0:00:18]} 73. Qe5# {[%clk 0:00:04]} 1-0


[Site "https://www.chess.com"]

[Event "Titled Tuesday Blitz April 25 Early 2023"]
[White "Galchenko, Matvey"]
[Black "MaryanKyrychenko"]
[WhiteFideId "24175480"]
[WhiteElo "2423"]
[BlackElo "2586"]
[Result "1-0"]
[Round "10"]
[TimeControl "180+2"]
[Date "2023.04.25"]
[WhiteClock "0:00:12"]
[BlackClock "0:00:07"]

1. f4 {[%clk 0:02:42]}  d5 {[%clk 0:02:59]} 2. Nf3 {[%clk 0:02:42]}  c5 {[%clk 0:03:00]} 3. g3 {[%clk 0:02:43]}  Nc6 {[%clk 0:03:01]} 4. Bg2 {[%clk 0:02:44]}  Nf6 {[%clk 0:02:59]} 5. O-O {[%clk 0:02:44]}  h5 {[%clk 0:02:57]} 6. d3 {[%clk 0:02:45]}  Bf5 {[%clk 0:02:54]} 7. Nc3 {[%clk 0:02:45]}  e6 {[%clk 0:02:48]} 8. Qe1 {[%clk 0:02:39]}  Nd4 {[%clk 0:02:26]} 9. Qd1 {[%clk 0:02:24]}  Nxf3+ {[%clk 0:02:15]} 10. Bxf3 {[%clk 0:02:25]}  d4 {[%clk 0:01:36]} 11. e4 {[%clk 0:02:13]}  dxc3 {[%clk 0:01:31]} 12. exf5 {[%clk 0:02:12]}  Qd4+ {[%clk 0:01:32]} 13. Kh1 {[%clk 0:02:05]}  cxb2 {[%clk 0:01:32]} 14. Bxb2 {[%clk 0:02:05]}  Qxb2 {[%clk 0:01:33]} 15. Rb1 {[%clk 0:02:01]}  Qd4 {[%clk 0:01:06]} 16. Bxb7 {[%clk 0:02:00]}  Rd8 {[%clk 0:01:00]} 17. Bc6+ {[%clk 0:01:43]}  Nd7 {[%clk 0:00:59]} 18. fxe6 {[%clk 0:01:35]}  fxe6 {[%clk 0:00:59]} 19. Qe2 {[%clk 0:01:31]}  Qd6 {[%clk 0:00:42]} 20. Be4 {[%clk 0:01:26]}  Be7 {[%clk 0:00:37]} 21. Rb7 {[%clk 0:01:11]}  c4 {[%clk 0:00:32]} 22. Rxa7 {[%clk 0:00:53]}  h4 {[%clk 0:00:19]} 23. g4 {[%clk 0:00:43]}  h3 {[%clk 0:00:19]} 24. g5 {[%clk 0:00:42]}  Rb8 {[%clk 0:00:10]} 25. dxc4 {[%clk 0:00:29]}  Rh4 {[%clk 0:00:09]} 26. Rd1 {[%clk 0:00:26]}  Qxf4 {[%clk 0:00:08]} 27. Bg6+ {[%clk 0:00:25]}  Kf8 {[%clk 0:00:07]} 28. Raxd7 {[%clk 0:00:14]}  Bc5 {[%clk 0:00:07]} 29. Rf1 {[%clk 0:00:12]}  Kg8 {[%clk 0:00:06]} 30. Rxf4 {[%clk 0:00:11]}  Rxf4 {[%clk 0:00:06]} 31. Qxe6+ {[%clk 0:00:11]}  Kh8 {[%clk 0:00:07]} 32. Qxh3+ {[%clk 0:00:11]}  Kg8 {[%clk 0:00:07]} 33. Qh7+ {[%clk 0:00:11]}  Kf8 {[%clk 0:00:07]} 34. Qh8# {[%clk 0:00:12]} 1-0


[Site "https://www.chess.com"]